bitfinex-derivatives/quotes_SOLF0:USTF0_20241029
["timestamp","ask_amount","ask_price","bid_price","bid_amount"]
[1730230265317,24.06627058,179.02,178.93,5.5]
[1730230265517,2.7936,178.97,178.92,8.2942]
[1730230265715,24.06627058,179.02,178.92,8.2942]
[1730230266124,24.06627058,179.02,178.92,5.5]
[1730230266310,24.06627058,179.02,178.91,5.5]
[1730230266815,2.7934,178.98,178.94,2.794]
[1730230267017,2.625,179.02,178.91,5.5]
[1730230267519,2.625,179.02,178.98,2.7933]
[1730230267920,2.625,179.02,178.96,5.5]
[1730230268119,2.625,179.02,178.99,2.7932]
[1730230268320,2.625,179.02,178.96,5.5]
[1730230268723,2.625,179.02,178.98,2.7933]
[1730230269425,2.625,179.02,178.97,2.7934]
[1730230269724,2.625,179.02,178.96,5.5]
[1730230270122,1.2414,179.03,178.96,5.5]
[1730230270317,21.44127058,179.1,178.96,26.94127058]
[1730230270627,21.44127058,179.1,179.05,2.7923]
[1730230271124,1.3531,179.11,179.08,2.7917]
[1730230271326,1.3531,179.11,179.02,5.5]
[1730230271824,1.3531,179.11,179.05,2.7923]
[1730230272227,1.3531,179.11,179.02,5.5]
[1730230272431,1.3531,179.11,179.05,2.7923]
[1730230272931,24.23317058,179.08,179.02,2.7928]
[1730230273133,21.44127058,179.08,178.99,5.5]
[1730230273329,21.44127058,179.05,178.97,5.5]
[1730230274427,21.44127058,179.05,178.96,5.5]
[1730230274828,1.3286,179.04,178.99,2.7932]
[1730230275231,1.3286,179.04,178.96,5.5]
[1730230275434,4.1212,179.04,178.99,2.7932]
[1730230275726,1.3286,179.04,178.99,2.7932]
[1730230276328,1.3286,179.04,178.97,2.7935]
[1730230276528,21.44127058,179.02,178.77,8.39]
[1730230276731,21.44127058,178.96,178.82,21.44127058]
[1730230276928,16.76,179.02,178.86,5.5]
[1730230276929,21.44127058,178.99,178.86,5.5]
[1730230277132,24.23457058,178.99,178.89,2.7947]
[1730230277330,24.23457058,178.99,178.86,5.5]
[1730230277331,21.44127058,178.99,178.86,5.5]
[1730230278033,2.7935,178.98,178.93,2.7941]
[1730230278242,21.44127058,178.99,178.86,5.5]
[1730230278435,2.7937,178.97,178.92,2.7942]
[1730230278732,21.44127058,179.02,178.91,5.5]
[1730230278940,21.44127058,179.02,178.92,5.5]
[1730230279238,21.44127058,179.02,178.97,2.7935]
[1730230279642,24.23417058,179.02,178.97,2.7935]
[1730230279842,2.6399,179.03,179.0,2.7931]
[1730230280133,2.6399,179.03,178.97,5.5]
[1730230280338,1.3422,179.03,179.0,2.7931]
[1730230280526,21.44127058,179.01,178.84,0.8679]
[1730230280726,21.44127058,179.01,178.85,26.94127058]
[1730230281130,2.7937,178.97,178.92,2.7943]
[1730230281439,21.44127058,178.98,178.9,5.5]
[1730230281631,21.44127058,178.98,178.85,21.44127058]
[1730230281833,21.44127058,178.98,178.86,5.5]
[1730230282233,2.7936,178.97,178.92,2.7943]
[1730230282736,21.44127058,178.95,178.84,0.8679]
[1730230283041,21.44127058,178.95,178.85,5.5]
[1730230283234,24.23527058,178.95,178.9,2.7946]
[1730230283440,1.2831,178.96,178.85,5.5]
[1730230284739,2.7941,178.94,178.85,5.5]
[1730230285041,22.72437058,178.96,178.85,5.5]
[1730230285237,21.44127058,178.93,178.84,0.8679]
[1730230285445,21.44127058,178.93,178.74,5.5941]
[1730230285446,21.44127058,178.89,178.74,5.5941]
[1730230285643,21.44127058,178.86,178.72,21.44127058]
[1730230285934,21.44127058,178.83,178.67,21.44127058]
[1730230286337,21.44127058,178.83,178.7,21.44127058]
[1730230286534,21.44127058,178.83,178.71,5.5]
[1730230286734,21.44127058,178.83,178.77,2.7967]
[1730230286933,22.67977058,178.85,178.77,2.7967]
[1730230287330,2.7959,178.83,178.77,2.7967]
[1730230287933,2.7959,178.82,178.77,2.7967]
[1730230288336,22.67977058,178.85,178.77,2.7967]
[1730230288538,2.796,178.82,178.76,2.7967]
[1730230288744,22.67977058,178.85,178.75,5.5]
[1730230288939,1.2385,178.85,178.75,5.5]
[1730230289242,1.2385,178.85,178.81,2.7959]
[1730230289643,1.2385,178.85,178.75,26.94127058]
[1730230289834,1.2831,178.88,178.83,2.7957]
[1730230290239,1.2831,178.88,178.82,5.5]
[1730230290433,1.2559,178.9,178.82,5.5]
[1730230290639,1.2815,178.94,178.82,5.5]
[1730230291048,1.2815,178.94,178.88,2.7949]
[1730230291347,1.2815,178.94,178.82,5.5]
[1730230291944,2.7944,178.92,178.86,2.7952]
[1730230292342,21.44127058,178.9,178.76,1.2584]
[1730230292537,21.44127058,178.87,178.78,2.7964]
[1730230292740,1.2493,178.86,178.78,2.7964]
[1730230293051,2.7961,178.82,178.75,5.5]
[1730230293245,21.44127058,178.84,178.75,5.5]
[1730230294651,2.7958,178.83,178.75,5.5]
[1730230295147,2.7958,178.83,178.77,2.7967]
[1730230295357,2.796,178.82,178.77,2.7967]
[1730230296251,2.7962,178.81,178.76,2.7968]
[1730230296454,21.44127058,178.84,178.76,2.7968]
[1730230296755,1.2302,178.85,178.75,5.5]
[1730230297249,2.7957,178.84,178.79,2.7964]
[1730230297446,1.2302,178.85,178.79,2.7964]
[1730230297650,1.2302,178.85,178.75,5.5]
[1730230297848,1.2302,178.85,178.81,2.7959]
[1730230298152,21.44127058,178.89,178.8,5.5]
[1730230298554,2.4976,178.91,178.8,5.5]
[1730230298951,21.44127058,178.89,178.8,5.5]
[1730230299149,2.7953,178.86,178.81,2.796]
[1730230299347,21.44127058,178.89,178.8,5.5]
[1730230299545,2.7954,178.86,178.81,2.796]
[1730230299746,21.44127058,178.87,178.8,5.5]
[1730230300359,2.7955,178.85,178.8,5.5]
[1730230300555,2.4976,178.91,178.8,5.5]
[1730230300856,2.7953,178.86,178.81,2.7961]
[1730230301959,2.7953,178.86,178.8,5.5]
[1730230301960,5.2923,178.91,178.86,2.7952]
[1730230302153,5.2923,178.91,178.8,5.5]
[1730230302154,2.4976,178.91,178.8,5.5]
[1730230302561,2.7949,178.89,178.83,2.7956]
[1730230302857,2.7949,178.89,178.8,5.5]
[1730230303054,2.4976,178.91,178.8,26.94127058]
[1730230303252,21.44127058,178.97,178.83,21.44127058]
[1730230304060,21.44127058,178.97,178.89,2.7947]
[1730230304061,2.794,178.95,178.89,2.7947]
[1730230304263,2.794,178.95,178.83,21.44127058]
[1730230304264,21.44127058,178.97,178.88,5.5]
[1730230304460,3.8462,179.0,178.89,5.5]
[1730230304766,2.5671,179.0,178.97,2.7935]
[1730230305065,2.5671,179.0,178.89,26.94127058]
[1730230305066,2.5671,179.0,178.96,5.5]
[1730230305364,2.5671,179.0,178.97,5.5]
[1730230305559,21.44127058,179.06,178.97,5.5]
[1730230306060,2.7927,179.03,178.98,8.2934]
[1730230306262,21.44127058,179.06,178.98,5.5]
[1730230307260,2.7927,179.03,178.98,5.5]
[1730230307465,2.7927,179.03,178.98,8.2933]
[1730230307865,2.7925,179.04,178.98,8.2933]
[1730230308063,21.44127058,179.06,178.98,8.2933]
[1730230308267,21.44127058,179.06,178.98,8.2934]
[1730230308472,2.7927,179.03,178.98,5.5]
[1730230308964,2.7927,179.03,178.98,8.2934]
[1730230309156,21.44127058,179.06,178.98,8.2934]
[1730230309665,2.5609,179.07,178.98,5.5]
[1730230310267,5.353,179.07,178.98,5.5]
[1730230310467,2.5609,179.07,178.98,5.5]
[1730230310665,2.5609,179.07,178.99,2.7932]
[1730230310666,2.7926,179.04,178.99,2.7932]
[1730230310867,2.5609,179.07,178.98,5.5]
[1730230311263,2.7923,179.06,179.01,2.7929]
[1730230311957,2.5609,179.07,178.98,5.5]
[1730230312162,2.5609,179.07,178.99,5.5]
[1730230312358,21.44127058,179.06,178.99,5.5]
[1730230312568,2.7927,179.03,178.99,5.5]
[1730230313369,2.7925,179.05,179.01,2.7929]
[1730230313571,2.5609,179.07,178.99,5.5]
[1730230314570,2.7922,179.06,178.99,5.5]
[1730230315071,2.7922,179.06,179.01,2.7929]
[1730230315265,2.5609,179.07,178.99,5.5]
[1730230315466,2.5609,179.07,179.03,2.7925]
[1730230316160,21.44127058,179.11,178.95,21.44127058]
[1730230316361,1.2378,179.13,179.06,2.7921]
[1730230316569,1.2378,179.13,179.06,5.5]
[1730230316969,23.95687058,179.14,179.06,5.5]
[1730230318870,23.95687058,179.14,178.98,21.44127058]
[1730230319066,21.44127058,179.12,178.99,5.5]
[1730230319268,21.44127058,179.09,179.0,5.5]
[1730230319462,2.7923,179.06,179.01,8.2928]
[1730230319667,2.7923,179.06,179.01,5.5]
[1730230320167,2.7923,179.06,178.98,2.7934]
[1730230320471,2.7919,179.08,178.99,5.5]
[1730230320772,2.7919,179.08,179.03,2.7925]
[1730230320973,2.7919,179.08,179.04,5.5]
[1730230321575,21.44127058,179.09,179.04,5.5]
[1730230321777,21.44127058,179.09,178.94,3.0202]
[1730230321778,1.2459,179.08,178.94,3.0202]
[1730230322073,21.44127058,179.06,178.93,60.4]
[1730230322269,21.44127058,179.03,178.94,5.5]
[1730230322471,21.44127058,179.03,178.89,2.9911]
[1730230322472,21.44127058,179.03,178.93,5.5]
[1730230323067,21.44127058,179.0,178.93,5.5]
[1730230323274,21.44127058,179.0,178.91,5.5]
[1730230323275,2.794,178.94,178.91,5.5]
[1730230323472,21.44127058,178.97,178.91,5.5]
[1730230323673,1.2817,178.99,178.91,5.5]
[1730230323874,1.2817,178.99,178.94,2.794]
[1730230323875,2.7934,178.99,178.94,2.794]
[1730230324071,21.44127058,179.0,178.91,5.5]
[1730230324669,2.7937,178.97,178.92,2.7943]
[1730230324981,21.44127058,179.0,178.91,5.5]
[1730230325175,21.44127058,179.0,178.9,5.5]
[1730230325384,21.44127058,178.97,178.9,5.5]
[1730230325683,2.7941,178.94,178.9,5.5]
[1730230326582,2.5185,178.96,178.9,5.5]
[1730230327069,5.3123,178.96,178.9,5.5]
[1730230327271,2.5185,178.96,178.9,5.5]
[1730230327469,2.5185,178.96,178.92,2.7942]
[1730230327674,2.5185,178.96,178.9,5.5]
[1730230327675,2.7939,178.95,178.9,5.5]
[1730230327874,2.5185,178.96,178.9,5.5]
[1730230328175,2.5185,178.96,178.85,21.44127058]
[1730230328176,2.5185,178.96,178.89,5.5]
[1730230328679,2.5185,178.96,178.89,8.2947]
[1730230328877,2.7942,178.94,178.89,5.5]
[1730230329077,2.5185,178.96,178.89,5.5]
[1730230329378,2.794,178.95,178.9,2.7946]
[1730230330583,2.5185,178.96,178.89,5.5]
[1730230330777,26.94127058,179.03,178.89,5.5]
[1730230330975,2.6212,179.02,178.89,5.5]
[1730230331175,2.7935,178.98,178.93,2.7941]
[1730230331971,2.7936,178.97,178.93,2.7941]
[1730230332286,21.44127058,178.96,178.89,5.5]
[1730230332581,19.3812,179.02,178.84,60.36]
[1730230332582,21.44127058,178.93,178.84,60.36]
[1730230332778,21.44127058,178.9,178.82,5.5]
[1730230332979,2.5247,178.92,178.76,3.0475]
[1730230333174,2.5247,178.92,178.79,21.44127058]
[1730230334274,2.5247,178.92,178.82,21.44127058]
[1730230334474,2.5247,178.92,178.83,5.5]
[1730230334873,2.7946,178.91,178.83,5.5]
[1730230335485,2.5247,178.92,178.83,5.5]
[1730230335486,2.7947,178.9,178.83,5.5]
[1730230335684,2.5247,178.92,178.83,5.5]
[1730230335879,2.5247,178.92,178.86,2.7952]
[1730230336074,21.44127058,178.89,178.72,5.5]
[1730230336279,40.72597058,178.92,178.61,65.9782]
[1730230336280,21.44127058,178.86,178.71,21.44127058]
[1730230336581,21.44127058,178.86,178.77,2.7967]
[1730230336582,2.7959,178.82,178.77,2.7967]
[1730230336781,21.44127058,178.86,178.72,5.5]
[1730230337276,2.7958,178.83,178.72,5.5]
[1730230337680,2.7962,178.81,178.69,2.976]
[1730230337878,21.44127058,178.83,178.7,5.5]
[1730230338081,21.44127058,178.81,178.71,5.5]
[1730230338288,2.7967,178.77,178.71,5.5]
[1730230338790,2.7966,178.78,178.72,2.7974]
[1730230339082,21.44127058,178.81,178.71,5.5]
[1730230339287,1.309,178.82,178.74,2.797]
[1730230339488,1.309,178.82,178.71,5.5]
[1730230340086,2.7962,178.81,178.71,5.5]
[1730230340286,1.309,178.82,178.71,5.5]
[1730230340688,2.7963,178.8,178.75,2.797]
[1730230341181,1.309,178.82,178.71,5.5]
[1730230341390,1.3288,178.81,178.7,5.5]
[1730230341592,1.3288,178.81,178.71,5.5]
[1730230342690,1.309,178.82,178.71,5.5]
[1730230343089,2.7963,178.8,178.74,2.7971]
[1730230343283,1.309,178.82,178.74,2.7971]
[1730230343589,1.309,178.82,178.63,2.5376]
[1730230343590,2.7966,178.78,178.73,8.2973]
[1730230343786,2.7966,178.78,178.73,2.7973]
[1730230344181,1.309,178.82,178.72,5.5]
[1730230344380,1.309,178.82,178.75,2.7969]
[1730230344576,1.309,178.82,178.72,5.5]
[1730230344982,2.7962,178.81,178.76,2.7968]
[1730230345177,1.309,178.82,178.72,26.94127058]
[1730230345488,38.20127058,178.86,178.72,26.94127058]
[1730230345688,21.44127058,178.84,178.72,5.5]
[1730230345887,2.7972,178.74,178.69,2.7979]
[1730230346091,21.44127058,178.78,178.63,2.5376]
[1730230346287,21.44127058,178.78,178.65,5.5]
[1730230346288,1.3461,178.77,178.65,5.5]
[1730230346492,1.3461,178.77,178.65,21.44127058]
[1730230346786,1.3113,178.76,178.63,2.5376]
[1730230347089,2.7974,178.73,178.68,2.7981]
[1730230347292,21.44127058,178.72,178.52,60.42]
[1730230347480,21.44127058,178.72,178.64,2.7986]
[1730230347481,2.798,178.69,178.64,2.7986]
[1730230347680,21.44127058,178.72,178.61,5.5]
[1730230348089,21.44127058,178.69,178.61,5.5]
[1730230348306,21.44127058,178.69,178.57,5.8]
[1730230348487,21.44127058,178.72,178.57,5.8]
[1730230349283,21.44127058,178.72,178.59,21.44127058]
[1730230349588,2.7987,178.65,178.59,2.7994]
[1730230349788,21.44127058,178.66,178.49,5.8]
[1730230349988,2.563,178.64,178.5,5.8]
[1730230350188,1.2406,178.64,178.41,2.6384]
[1730230350393,21.44127058,178.62,178.41,2.6384]
[1730230350690,2.7995,178.6,178.53,2.8005]
[1730230350992,21.44127058,178.62,178.49,27.24127058]
[1730230351289,21.44127058,178.62,178.5,5.8]
[1730230352390,29.87837058,178.63,178.5,5.8]
[1730230352592,2.6371,178.63,178.5,27.24127058]
[1730230352794,2.6371,178.63,178.51,1.2599]
[1730230353001,2.6371,178.63,178.58,2.7996]
[1730230353198,2.6371,178.63,178.51,3.7979]
[1730230354102,2.6371,178.63,178.57,2.7998]
[1730230355107,1.2406,178.64,178.55,5.8]
[1730230355601,25.46457058,178.68,178.61,2.7991]
[1730230356197,2.7983,178.67,178.61,2.7992]
[1730230356408,1.2252,178.68,178.55,5.8]
[1730230356796,1.2252,178.68,178.59,21.44127058]
[1730230357097,1.328,178.71,178.6,5.8]
[1730230357297,1.328,178.71,178.6,8.3686]
[1730230358494,1.328,178.71,178.61,5.8]
[1730230358902,1.328,178.71,178.6,2.5686]
[1730230359101,21.44127058,178.76,178.61,5.8]
[1730230359299,21.44127058,178.73,178.61,5.8]
[1730230359597,21.44127058,178.73,178.64,2.7986]
[1730230360001,21.44127058,178.73,178.61,5.8]
[1730230360196,21.44127058,178.73,178.64,2.7987]
[1730230360701,21.44127058,178.73,178.51,1.2456]
[1730230360702,21.44127058,178.68,178.53,21.44127058]
[1730230360896,2.5082,178.67,178.54,5.8]
[1730230361093,2.5082,178.67,178.52,1.3291]
[1730230361292,2.7992,178.61,178.55,2.8]
[1730230361492,38.20127058,178.65,178.51,1.2456]
[1730230361702,38.20127058,178.65,178.52,5.8]
[1730230361900,21.44127058,178.62,178.52,5.8]
[1730230362201,27.24127058,178.62,178.47,81.92127058]
[1730230362403,27.24127058,178.62,178.48,5.8]
[1730230362797,21.44127058,178.65,178.5,21.44127058]
[1730230362998,21.44127058,178.65,178.53,21.44127058]
[1730230363198,7.1089,178.66,178.59,2.7994]
[1730230363498,7.1089,178.66,178.54,5.8]
[1730230363698,1.3089,178.66,178.54,5.8]
[1730230364503,1.3089,178.66,178.57,2.7997]
[1730230364703,1.3089,178.66,178.54,5.8]
[1730230364901,2.7992,178.62,178.55,2.8]
[1730230365106,1.3089,178.66,178.55,2.8]
[1730230365304,1.3089,178.66,178.47,60.48]
[1730230365305,21.44127058,178.59,178.47,60.48]
[1730230365503,21.44127058,178.59,178.4,5.6048]
[1730230365504,21.44127058,178.56,178.41,2.6717]
[1730230365697,1.3386,178.55,178.42,5.8]
[1730230365903,2.8009,178.51,178.45,2.8017]
[1730230366205,44.02127058,178.54,178.41,1.3351]
[1730230366510,44.02127058,178.54,178.38,21.44127058]
[1730230366511,21.44127058,178.5,178.38,5.82]
[1730230366709,1.2943,178.49,178.38,5.82]
[1730230367014,2.58,178.49,178.38,5.82]
[1730230367198,2.58,178.49,178.18,8.07810058]
[1730230367199,21.44127058,178.43,178.18,8.07810058]
[1730230367398,21.44127058,178.47,178.32,21.44127058]
[1730230367595,21.44127058,178.47,178.28,2.671]
[1730230367802,21.44127058,178.47,178.32,21.44127058]
[1730230367803,1.3386,178.46,178.32,21.44127058]
[1730230368002,1.3386,178.46,178.28,1.3359]
[1730230368205,4.1402,178.46,178.34,2.8033]
[1730230368405,1.3386,178.46,178.35,5.82]
[1730230368604,1.3386,178.46,178.36,5.82]
[1730230368908,2.8019,178.44,178.37,2.803]
[1730230369104,1.3386,178.46,178.3,1.3351]
[1730230369407,2.8024,178.41,178.3,7.1551]
[1730230369607,21.44127058,178.42,178.3,7.1551]
[1730230369811,2.8017,178.45,178.37,2.8028]
[1730230369995,21.44127058,178.45,178.34,5.82]
[1730230370604,21.44127058,178.41,178.3,1.3351]
[1730230370811,21.44127058,178.41,178.29,66.34]
[1730230371407,2.8027,178.39,178.29,66.34]
[1730230371704,1.3386,178.46,178.16,2.4785]
[1730230371705,21.44127058,178.38,178.16,2.4785]
[1730230371907,2.803,178.37,178.29,2.8041]
[1730230372208,27.26127058,178.38,178.27,5.82]
[1730230372209,21.44127058,178.38,178.27,5.82]
[1730230372614,1.3225,178.45,178.28,21.44127058]
[1730230372806,21.44127058,178.44,178.31,21.44127058]
[1730230372998,21.44127058,178.44,178.32,5.82]
[1730230373411,21.44127058,178.44,178.31,21.44127058]
[1730230373603,21.44127058,178.44,178.33,5.82]
[1730230373905,2.802,178.43,178.35,2.8033]
[1730230374106,2.802,178.43,178.33,5.82]
[1730230374107,21.44127058,178.44,178.33,5.82]
[1730230374413,1.3225,178.45,178.33,5.82]
[1730230374710,1.3386,178.46,178.33,5.82]
[1730230374711,1.3386,178.46,178.34,21.44127058]
[1730230375010,1.3386,178.46,178.35,5.82]
[1730230375611,1.3386,178.46,178.39,2.8026]
[1730230375811,1.3386,178.46,178.35,5.82]
[1730230376309,1.3386,178.46,178.4,2.8025]
[1730230376512,1.3386,178.46,178.35,5.82]
[1730230376710,1.3386,178.46,178.39,2.8026]
[1730230377008,1.3386,178.46,178.35,5.82]
[1730230377312,1.3386,178.46,178.39,2.8026]
[1730230377715,1.3386,178.46,178.35,5.82]
[1730230378013,1.3386,178.46,178.41,2.8023]
[1730230379607,1.3386,178.46,178.35,5.82]
[1730230379608,1.3386,178.46,178.37,21.44127058]
[1730230379802,1.2943,178.49,178.37,21.44127058]
[1730230380006,21.44127058,178.5,178.35,5.82]
[1730230380007,21.44127058,178.53,178.48,2.8012]
[1730230380212,3.8125,178.56,178.44,6.12]
[1730230380712,2.5195,178.56,178.45,21.44127058]
[1730230380913,1.293,178.6,178.48,21.44127058]
[1730230381109,1.293,178.6,178.49,6.12]
[1730230381321,21.44127058,178.58,178.49,6.12]
[1730230381617,21.44127058,178.58,178.48,6.12]
[1730230381813,2.8,178.56,178.47,6.12]
[1730230382310,2.8,178.56,178.51,2.8007]
[1730230382509,21.44127058,178.58,178.47,6.12]
[1730230382715,1.293,178.6,178.47,6.12]
[1730230382907,1.293,178.6,178.52,2.8006]
[1730230383108,1.293,178.6,178.52,6.12]
[1730230383610,2.6356,178.65,178.52,6.12]
[1730230383611,2.6356,178.65,178.54,21.44127058]
[1730230383809,1.2519,178.71,178.57,21.44127058]
[1730230384004,1.3389,178.7,178.58,6.12]
[1730230384708,4.1367,178.7,178.64,2.7987]
[1730230384915,21.44127058,178.69,178.63,6.12]
[1730230385406,2.7984,178.67,178.63,6.12]
[1730230385608,21.44127058,178.69,178.63,6.12]
[1730230385914,1.3389,178.7,178.63,6.12]
[1730230386510,1.3389,178.7,178.64,2.7986]
[1730230386812,1.3389,178.7,178.63,6.12]
[1730230387209,60.54,178.76,178.63,6.12]
[1730230387210,21.44127058,178.75,178.63,6.12]
[1730230387418,22.70877058,178.75,178.63,6.12]
[1730230387617,22.70877058,178.75,178.64,2.7987]
[1730230387914,22.70877058,178.75,178.63,6.12]
[1730230388119,4.0646,178.75,178.69,2.7979]
[1730230388316,1.2675,178.75,178.68,6.12]
[1730230388506,21.44127058,178.78,178.69,6.12]
[1730230388711,2.7966,178.78,178.69,6.12]
[1730230389112,2.797,178.76,178.69,6.12]
[1730230389317,21.44127058,178.78,178.68,2.7981]
[1730230389517,21.44127058,178.78,178.68,8.9181]
[1730230389716,2.7974,178.73,178.68,6.12]
[1730230390017,21.44127058,178.72,178.65,6.12]
[1730230390219,2.7979,178.7,178.65,6.12]
[1730230390525,21.44127058,178.72,178.65,6.12]
[1730230392010,7.3896,178.79,178.58,3.8817]
[1730230392011,21.44127058,178.69,178.58,3.8817]
[1730230392220,1.285,178.68,178.6,6.12]
[1730230392614,2.7986,178.65,178.6,6.12]
[1730230392815,21.44127058,178.65,178.51,21.44127058]
[1730230393021,21.44127058,178.65,178.54,6.12]
[1730230393625,1.303,178.67,178.58,2.7996]
[1730230393922,1.303,178.67,178.54,27.56127058]
[1730230394125,2.7993,178.61,178.54,27.56127058]
[1730230394315,21.44127058,178.65,178.54,6.12]
[1730230394817,1.285,178.68,178.59,21.44127058]
[1730230395120,1.285,178.68,178.6,6.12]
[1730230396121,4.0831,178.68,178.6,8.9193]
[1730230396318,1.285,178.68,178.6,6.12]
[1730230396823,1.2608,178.71,178.6,6.12]
[1730230397021,1.316,178.74,178.62,21.44127058]
[1730230397922,1.316,178.74,178.67,2.7982]
[1730230398219,1.316,178.74,178.66,6.12]
[1730230398422,1.316,178.74,178.69,2.7978]
[1730230398720,1.2662,178.75,178.66,6.12]
[1730230398917,21.44127058,178.79,178.66,6.12]
[1730230399117,2.7967,178.78,178.71,2.7975]
[1730230399320,2.7967,178.78,178.67,21.44127058]
[1730230400119,21.44127058,178.87,178.72,21.44127058]
[1730230400319,1.2643,178.86,178.73,6.12]
[1730230400521,2.7959,178.83,178.73,6.12]
[1730230400717,1.2643,178.86,178.73,6.12]
[1730230401826,2.7955,178.85,178.78,2.7964]
[1730230402026,1.2643,178.86,178.78,2.7964]
[1730230402226,1.2643,178.86,178.74,1.3037]
[1730230402419,1.2643,178.86,178.76,2.7967]
[1730230402922,2.7956,178.85,178.78,2.7964]
[1730230403326,2.8589754,178.93,178.79,6.12]
[1730230403520,2.7953,178.86,178.8,6.12]
[1730230403929,21.44127058,178.88,178.8,6.12]
[1730230405027,21.44127058,178.88,178.78,6.12]
[1730230405329,21.44127058,178.85,178.76,5.92]
[1730230406028,21.44127058,178.82,178.69,21.44127058]
[1730230406329,1.3451,178.81,178.7,5.92]
[1730230406526,21.44127058,178.85,178.72,21.44127058]
[1730230406734,1.3451,178.86,178.72,21.44127058]
[1730230407324,1.3451,178.86,178.75,21.44127058]
[1730230407526,1.3451,178.86,178.76,5.92]
[1730230407824,2.7955,178.85,178.79,2.7964]
[1730230408024,1.3451,178.86,178.79,2.7964]
[1730230408223,1.3451,178.86,178.72,21.44127058]
[1730230408423,21.44127058,178.85,178.73,5.92]
[1730230409025,2.796,178.82,178.75,2.797]
[1730230409225,21.44127058,178.85,178.75,2.797]
[1730230409430,21.44127058,178.85,178.73,5.92]
[1730230410234,21.44127058,178.85,178.76,2.7969]
[1730230410429,21.44127058,178.85,178.73,5.92]
[1730230411231,2.7962,178.81,178.77,2.7967]
[1730230411628,21.44127058,178.85,178.73,5.92]
[1730230412233,2.7963,178.8,178.76,2.7968]
[1730230412834,21.44127058,178.85,178.76,2.7968]
[1730230413029,2.7964,178.79,178.76,2.7968]
[1730230413427,21.44127058,178.79,178.67,3.9092]
[1730230413629,21.44127058,178.77,178.67,1.3432]
[1730230413832,21.44127058,178.74,178.66,5.92]
[1730230414034,21.44127058,178.74,178.6,21.44127058]
[1730230414235,21.44127058,178.74,178.61,5.92]
[1730230414632,2.7978,178.7,178.66,2.7983]
[1730230414932,3.8092,178.76,178.63,21.44127058]
[1730230415237,21.44127058,178.79,178.66,21.44127058]
[1730230415429,21.44127058,178.79,178.67,7.1969]
[1730230415632,2.7969,178.76,178.67,7.1969]
[1730230415837,21.44127058,178.79,178.67,7.1969]
[1730230416232,38.20127058,178.79,178.67,7.1969]
[1730230416541,21.44127058,178.76,178.66,5.92]
[1730230416737,2.7979,178.7,178.66,8.7183]
[1730230417036,21.44127058,178.74,178.64,5.92]
[1730230417232,1.2499,178.73,178.64,5.92]
[1730230418432,2.7975,178.72,178.66,2.7983]
[1730230418629,2.7975,178.72,178.64,5.92]
[1730230419442,2.7977,178.71,178.64,5.92]
[1730230420142,2.7976,178.72,178.67,2.7983]
[1730230420338,1.2499,178.73,178.67,2.7983]
[1730230420538,1.2499,178.73,178.64,5.92]
[1730230420539,1.2499,178.73,178.66,2.7984]
[1730230420738,1.2499,178.73,178.64,5.92]
[1730230421041,1.2499,178.73,178.63,5.92]
[1730230421236,2.7986,178.66,178.59,1.247]
[1730230421442,21.44127058,178.71,178.6,5.92]
[1730230421736,2.7989,178.63,178.6,5.92]